bitfinex/quotes_SOLUSD_20230113
["timestamp","ask_amount","ask_price","bid_price","bid_amount"]
[1673592466627,30.46683801,17.031,17.02,10.0]
[1673592466836,20.0,17.03,17.02,10.0]
[1673592467681,30.46683801,17.029,17.02,10.0]
[1673592467993,20.0,17.028,17.02,10.0]
[1673592468193,20.0,17.028,17.019,2457.2]
[1673592468400,47.46683801,17.027,17.019,2457.2]
[1673592468810,30.46683801,17.026,17.019,2457.2]
[1673592469021,17.0,17.025,17.019,2457.2]
[1673592470319,20.0,17.028,17.02,10.0]
[1673592470515,20.0,17.032,17.02,10.0]
[1673592472171,20.0,17.032,17.019,2457.2]
[1673592472386,50.57190211,17.031,17.019,2457.2]
[1673592472596,37.0,17.03,17.02,10.0]
[1673592473020,30.46683801,17.029,17.02,10.0]
[1673592473236,37.0,17.028,17.02,10.0]
[1673592473763,30.46683801,17.027,17.02,10.0]
[1673592473975,17.0,17.026,17.02,10.0]
[1673592474211,17.0,17.026,17.019,2457.2]
[1673592474533,67.57190211,17.026,17.019,2457.2]
[1673592474730,37.1050641,17.026,17.019,2457.2]
[1673592477872,20.1050641,17.026,17.019,2457.2]
[1673592478088,20.1050641,17.026,17.02,10.0]
[1673592479147,20.1050641,17.026,17.019,2457.2]
[1673592479870,17.0,17.025,17.019,2457.2]
[1673592482717,47.46683801,17.025,17.019,2457.2]
[1673592483981,39.78224196,17.032,17.03,1186.48316199]
[1673592485243,44.37746953,17.033,17.03,1175.48316199]
[1673592485656,30.46683801,17.033,17.03,1175.48316199]
[1673592486395,39.78224196,17.035,17.031,1228.6]
[1673592486604,30.46683801,17.034,17.031,1228.6]
[1673592487436,30.46683801,17.034,17.031,1217.6]
[1673592489641,17.0,17.033,17.031,1217.6]
[1673592490171,30.46683801,17.033,17.021,1228.6]
[1673592490410,30.46683801,17.033,17.022,10.0]
[1673592490603,30.46683801,17.033,17.023,1228.6]
[1673592490924,30.46683801,17.033,17.024,10.0]
[1673592491326,30.46683801,17.033,17.026,10.0]
[1673592491535,30.46683801,17.033,17.028,10.0]
[1673592491769,17.0,17.032,17.029,1228.6]
[1673592493456,39.78224196,17.035,17.029,1228.6]
[1673592493763,39.78224196,17.035,17.03,10.0]
[1673592494076,39.78224196,17.035,17.03,1228.6]
[1673592494484,60.93367602,17.034,17.03,1228.6]
[1673592494686,30.46683801,17.034,17.03,1228.6]
[1673592495024,17.0,17.033,17.03,1228.6]
[1673592495757,47.46683801,17.033,17.03,1228.6]
[1673592497341,39.78224196,17.035,17.03,1228.6]
[1673592497540,30.46683801,17.033,17.03,1228.6]
[1673592498156,39.78224196,17.035,17.021,1228.6]
[1673592498393,39.78224196,17.035,17.022,10.0]
[1673592498593,39.78224196,17.035,17.023,1228.6]
[1673592498998,30.46683801,17.034,17.023,1228.6]
[1673592499216,30.46683801,17.034,17.024,10.0]
[1673592499855,30.46683801,17.034,17.025,1228.6]
[1673592500273,17.0,17.033,17.025,1228.6]
[1673592500687,47.46683801,17.034,17.025,1228.6]
[1673592501434,91.84430754,17.034,17.025,1228.6]
[1673592502163,30.0,17.033,17.025,1228.6]
[1673592502379,17.0,17.032,17.025,1228.6]
[1673592502595,11.68,17.03,17.025,1228.6]
[1673592502801,11.68,17.03,17.011,588.1]
[1673592502802,37.0,17.029,17.012,110.2871]
[1673592503011,123.67249546,17.029,17.012,110.2871]
[1673592503217,78.25934274,17.028,17.012,110.2871]
[1673592503431,37.0,17.027,17.012,110.2871]
[1673592503645,173.9680661,17.027,17.012,110.2871]
[1673592503968,106.50122809,17.026,17.012,110.2871]
[1673592504175,17.0,17.025,17.012,110.2871]
[1673592504570,17.0,17.025,17.019,1228.6]
[1673592504804,30.1050641,17.024,17.019,1228.6]
[1673592504995,20.0,17.023,17.019,1228.6]
[1673592505328,17.0,17.022,17.019,1228.6]
[1673592505641,30.46683801,17.021,17.019,1228.6]
[1673592505858,17.0,17.02,17.019,1228.6]
[1673592506988,88.62111665,17.021,17.019,1228.6]
[1673592506989,5.83171665,17.021,17.019,1228.1]
[1673592507203,11.87,17.03,17.02,17.0]
[1673592507630,11.87,17.03,17.019,1228.1]
[1673592508052,31.9750641,17.03,17.019,1228.1]
[1673592509199,75.79309652,17.03,17.019,1228.1]
[1673592509835,17.0,17.029,17.019,1228.1]
[1673592511297,37.1050641,17.029,17.019,1228.1]
[1673592512778,37.1050641,17.029,17.02,10.0]
[1673592514158,11.87,17.03,17.02,10.0]
[1673592514375,20.0,17.029,17.02,10.0]
[1673592515518,17.0,17.028,17.02,10.0]
[1673592515729,20.0,17.027,17.019,1228.1]
[1673592515939,17.0,17.026,17.019,1228.1]
[1673592516575,20.0,17.027,17.019,1228.1]
[1673592516791,20.0,17.029,17.02,10.0]
[1673592517312,11.87,17.03,17.02,10.0]
[1673592517313,30.46683801,17.036,17.02,10.0]
[1673592517529,30.46683801,17.036,17.021,10.0]
[1673592517740,3.09072603,17.033,17.021,10.0]
[1673592518266,30.46683801,17.032,17.021,10.0]
[1673592518476,2.69493842,17.031,17.02,111.7134]
[1673592519095,17.0,17.031,17.021,10.0]
[1673592519307,87.45267358,17.035,17.021,10.0]
[1673592521301,43.81803242,17.035,17.021,10.0]
[1673592522046,17.0,17.034,17.02,111.7134]
[1673592522249,23.08435845,17.033,17.02,111.7134]
[1673592522460,17.0,17.032,17.02,111.7134]
[1673592522665,23.24732968,17.031,17.02,111.7134]
[1673592522899,28.71,17.03,17.02,111.7134]
[1673592523096,20.0,17.029,17.02,111.7134]
[1673592523414,17.0,17.028,17.02,111.7134]
[1673592523617,20.0,17.027,17.02,111.7134]
[1673592523829,17.0,17.026,17.02,111.7134]
[1673592524157,47.46683801,17.026,17.02,111.7134]
[1673592524356,30.46683801,17.025,17.02,111.7134]
[1673592524545,17.0,17.024,17.02,111.7134]
[1673592524761,17.0,17.024,17.019,116.5852]
[1673592525310,17.0,17.024,17.01,570.7261]
[1673592525512,17.0,17.024,17.012,1228.6]
[1673592525826,17.0,17.024,17.013,10.0]
[1673592526041,30.46683801,17.025,17.013,10.0]
[1673592526361,30.46683801,17.025,17.014,10.0]
[1673592527284,30.46683801,17.025,17.014,9.5]
[1673592527496,20.0,17.027,17.014,9.5]
[1673592527833,20.0,17.03,17.014,9.5]
[1673592528650,20.0,17.03,17.016,10.0]
[1673592528856,10.0,17.048,17.02,58.73]
[1673592529205,30.46683801,17.038,17.03,11.66]
[1673592529389,20.0,17.037,17.03,11.66]
[1673592530337,30.46683801,17.038,17.03,11.66]
[1673592530553,20.0,17.037,17.03,11.66]
[1673592531821,1.65306509,17.049,17.038,1198.13316199]
[1673592532018,1.15306509,17.049,17.039,10.0]
[1673592533380,21.25812919,17.049,17.039,10.0]
[1673592534248,17.0,17.048,17.039,10.0]
[1673592534766,1.15306509,17.049,17.04,11.77]
[1673592534974,1.15306509,17.049,17.041,10.0]
[1673592537710,30.23882785,17.049,17.041,10.0]
[1673592537920,17.0,17.048,17.041,10.0]
[1673592538149,20.0,17.047,17.041,10.0]
[1673592538760,20.0,17.048,17.041,10.0]
[1673592539092,20.0,17.048,17.04,11.77]
[1673592539306,17.0,17.047,17.038,1198.13316199]
[1673592539620,20.0,17.046,17.038,1198.13316199]
[1673592539814,17.0,17.045,17.038,1198.13316199]
[1673592540990,17.0,17.045,17.031,117.5388]
[1673592541296,17.0,17.045,17.032,10.0]
[1673592543599,20.0,17.046,17.032,10.0]
[1673592543818,20.0,17.047,17.032,10.0]
[1673592544023,1.15306509,17.049,17.032,10.0]
[1673592544242,29.08576276,17.048,17.032,10.0]
[1673592544458,20.0,17.047,17.032,10.0]
[1673592544668,1.15306509,17.049,17.032,10.0]
[1673592545940,20.0,17.059,17.041,10.0]
[1673592546248,20.1050641,17.062,17.043,10.0]
[1673592546463,87.23,17.064,17.044,116.6593]
[1673592546648,20.1050641,17.062,17.046,10.0]
[1673592546861,20.1050641,17.062,17.047,1228.6]
[1673592547400,20.1050641,17.062,17.048,10.0]
[1673592547611,20.0,17.061,17.049,1228.6]
[1673592547829,20.0,17.065,17.05,10.0]
[1673592548010,29.08576276,17.06,17.051,1228.6]
[1673592548226,20.0,17.059,17.051,1228.6]
[1673592548658,29.08576276,17.061,17.052,10.0]
[1673592548869,37.0,17.06,17.051,1228.6]
[1673592549083,52.55,17.06,17.053,1228.6]
[1673592549397,97.74603242,17.06,17.053,1228.6]
[1673592549615,1.38107525,17.059,17.053,1228.6]
[1673592553387,1.38107525,17.059,17.054,10.0]
[1673592554439,1.38107525,17.059,17.053,1188.6]
[1673592554646,1.38107525,17.059,17.044,116.6593]
[1673592554647,20.0,17.06,17.054,1228.6]
[1673592554874,20.0,17.063,17.055,10.0]
[1673592555075,20.0,17.063,17.054,1228.6]
[1673592555270,23.31681013,17.063,17.054,1228.6]
[1673592555480,20.0,17.063,17.054,1228.6]
[1673592555809,3.31681013,17.062,17.054,1228.6]
[1673592556014,3.31681013,17.062,17.055,10.0]
[1673592556876,3.31681013,17.062,17.054,1228.6]
[1673592557406,20.31681013,17.062,17.054,1228.6]
[1673592557622,20.0,17.061,17.054,1228.6]
[1673592557812,17.0,17.06,17.054,1228.6]
[1673592558231,20.0,17.059,17.054,1228.6]
[1673592558453,17.0,17.058,17.054,1228.6]
[1673592558665,20.0,17.057,17.054,1228.6]
[1673592558855,17.0,17.056,17.054,1228.6]
[1673592559068,166.89033735,17.06,17.043,10.0]
[1673592559284,3.31681013,17.055,17.043,1238.6]
[1673592559593,3.31681013,17.055,17.044,10.0]
[1673592559818,3.31681013,17.055,17.045,1228.6]
[1673592560033,3.31681013,17.055,17.046,10.0]
[1673592560227,3.31681013,17.055,17.048,10.0]
[1673592560433,20.0,17.059,17.049,1228.6]
[1673592560981,3.31681013,17.058,17.05,10.0]
[1673592561171,3.31681013,17.058,17.051,10.0]
[1673592563074,3.31681013,17.058,17.05,1238.6]
[1673592563075,3.31681013,17.058,17.05,1228.6]
[1673592564219,1.31681013,17.058,17.05,1228.6]
[1673592564443,37.0,17.059,17.05,1228.6]
[1673592564655,37.0,17.059,17.042,10.0]
[1673592564855,45.19603242,17.058,17.042,10.0]
[1673592565058,37.0,17.057,17.042,10.0]
[1673592566238,86.10469908,17.057,17.042,10.0]
[1673592566644,86.10469908,17.057,17.041,111.4027]
[1673592566645,134.17900401,17.057,17.041,111.4027]
[1673592566967,15.55,17.05,17.041,111.4027]
[1673592567286,37.0,17.049,17.041,111.4027]
[1673592572422,37.0,17.049,17.02,78.65]
[1673592572423,141.90100401,17.049,17.02,15.77]
[1673592572755,15.66,17.04,17.023,114.3259]
[1673592572938,20.0,17.039,17.029,10.0]
[1673592574102,20.0,17.038,17.029,10.0]
[1673592574329,20.0,17.048,17.029,10.0]
[1673592574527,20.0,17.048,17.031,10.0]
[1673592574740,52.67536575,17.047,17.031,10.0]
[1673592574954,20.0,17.046,17.028,76.91389]
[1673592575266,15.55,17.04,17.028,76.91389]
[1673592575466,3.71823782,17.038,17.028,76.91389]
[1673592578417,56.39360357,17.038,17.01,192.5612]
[1673592578634,10.0,17.036,17.01,129.9212]
[1673592578838,41.38046166,17.035,17.01,129.9212]
[1673592579031,131.90730675,17.035,17.01,129.9212]
[1673592579242,52.67536575,17.034,17.01,129.9212]
[1673592579453,41.67187108,17.033,17.01,129.9212]
[1673592580210,41.67187108,17.033,17.012,10.0]
[1673592580941,106.01784919,17.018,17.01,396.6]
[1673592581262,106.01784919,17.018,17.007,396.6]
[1673592581263,5.51911744,17.015,17.007,396.6]
[1673592581468,5.51911744,17.015,16.987,119.1623]
[1673592581469,15.51911744,17.015,16.987,119.1623]
[1673592581667,5.51911744,17.013,16.988,1228.6]
[1673592581872,5.51911744,17.011,16.988,1228.6]
[1673592582104,15.66,17.0,16.988,1228.6]
[1673592582299,20.0,16.999,16.988,1228.6]
[1673592582511,37.0,16.999,16.988,1228.6]
[1673592583567,65.37342027,17.008,16.987,119.1623]
[1673592583568,78.19,17.02,16.99,15.66]
[1673592583781,1.50932691,17.002,16.991,1228.6]
[1673592583995,31.38,17.01,16.991,1228.6]
[1673592584210,10.0,17.009,16.991,1228.6]
[1673592584601,15.66,17.0,16.991,1228.6]
[1673592585263,20.0,16.999,16.991,1228.6]
[1673592585662,17.0,16.998,16.991,1228.6]
[1673592585873,20.0,16.997,16.991,1228.6]
[1673592586085,17.0,16.996,16.991,1228.6]
[1673592588408,20.0,16.997,16.991,1228.6]
[1673592588600,20.0,16.999,16.991,1228.6]
[1673592589887,17.0,16.998,16.991,1228.6]
[1673592590103,20.0,16.997,16.991,1228.6]
[1673592590835,17.0,16.996,16.991,1228.6]
[1673592591049,20.0,16.997,16.991,1228.6]
[1673592592818,17.0,16.996,16.991,1228.6]
[1673592593241,17.0,16.996,16.991,1203.6]
[1673592593559,2.73200828,16.995,16.987,119.1623]
[1673592593757,2.94070084,16.998,16.985,10.0]
[1673592593974,20.0,16.999,16.985,1238.6]
[1673592594595,20.0,16.999,16.985,1228.6]
[1673592594832,78.29,16.99,16.966,1228.6]
[1673592595030,10.0,16.989,16.966,1339.1744]
[1673592595233,37.0,16.988,16.97,396.6]
[1673592595579,15.62,16.98,16.97,396.6]
[1673592595759,20.0,16.979,16.967,10.0]
[1673592596090,20.0,16.979,16.969,10.0]
[1673592597120,20.0,16.987,16.969,10.0]
[1673592597336,15.63,17.0,16.971,10.0]
[1673592597545,15.63,17.0,16.972,1228.6]
[1673592597751,15.63,17.0,16.973,10.0]
[1673592597968,15.63,17.0,16.975,10.0]
[1673592598189,15.63,17.0,16.976,1344.1073]
[1673592598389,78.27,17.0,16.977,10.0]
[1673592598599,78.27,17.0,16.978,1228.6]
[1673592598811,17.0,16.999,16.978,1228.6]
[1673592599032,20.0,16.998,16.978,1228.6]
[1673592599348,17.0,16.997,16.978,1228.6]
[1673592599664,20.0,16.996,16.978,1228.6]
[1673592599859,17.0,16.995,16.978,1228.6]
[1673592600069,20.0,16.994,16.978,1228.6]
[1673592600281,17.0,16.993,16.978,1228.6]
[1673592600492,20.0,16.992,16.978,1228.6]
[1673592600705,15.62,16.99,16.978,1228.6]
[1673592600918,15.62,16.99,16.971,396.6]
[1673592600919,37.0,16.989,16.971,396.6]
[1673592601455,37.0,16.989,16.972,10.0]
[1673592602077,20.0,16.989,16.974,10.0]
[1673592602292,20.0,16.999,16.974,10.0]
[1673592602488,118.41,17.0,16.975,109.1624]
[1673592603047,118.41,17.0,16.976,10.0]
[1673592603215,10.0,16.999,16.975,109.1624]
[1673592603861,20.0,16.998,16.975,109.1624]
[1673592604069,20.0,16.999,16.976,10.0]
[1673592604802,20.0,16.999,16.975,119.1624]
[1673592605233,20.0,16.999,16.975,109.1624]
[1673592605451,17.0,16.998,16.975,109.1624]
[1673592605763,23.67,16.99,16.975,109.1624]
[1673592605946,37.0,16.989,16.975,109.1624]
[1673592606157,20.0,16.989,16.977,10.0]
[1673592606389,20.0,16.989,16.978,17.0]
[1673592606596,20.0,16.999,16.978,17.0]
[1673592607213,20.0,16.999,16.979,10.0]
[1673592607744,20.0,16.999,16.98,40.55]
[1673592607962,20.0,16.999,16.981,10.0]
[1673592608785,17.0,16.998,16.981,10.0]
[1673592609017,20.0,16.997,16.981,10.0]
[1673592609331,17.0,16.996,16.981,10.0]
[1673592609755,20.0,16.995,16.981,10.0]
[1673592609966,17.0,16.994,16.981,10.0]
[1673592612062,20.0,16.995,16.981,10.0]
[1673592612264,20.0,16.999,16.982,17.0]
[1673592612480,20.0,17.008,16.982,17.0]
[1673592612687,128.0,17.01,16.984,10.0]
[1673592612688,20.0,17.009,16.984,10.0]
[1673592613006,20.0,17.009,16.985,108.8112]
[1673592613218,20.0,17.009,16.986,10.0]
[1673592613619,20.0,17.009,16.985,108.8112]
[1673592614785,21.50932691,17.009,16.985,108.8112]
[1673592615955,17.0,17.008,16.985,108.8112]
[1673592616148,17.0,17.008,16.986,10.0]
[1673592616149,20.0,17.007,16.986,10.0]
[1673592616361,17.0,17.006,16.985,108.8112]
[1673592616575,20.0,17.005,16.985,108.8112]
[1673592616792,17.0,17.004,16.985,108.8112]
[1673592616998,20.0,17.003,16.985,108.8112]
[1673592617201,17.0,17.002,16.985,108.8112]
[1673592617411,20.0,17.001,16.986,27.0]
[1673592617629,20.0,17.003,16.986,10.0]
[1673592618158,118.52,17.0,16.956,30.70661694]
[1673592618350,118.09,16.98,16.957,10.0]
[1673592618773,37.0,16.979,16.957,10.0]
[1673592618980,100.90861079,16.979,16.957,10.0]
[1673592619310,63.90861079,16.978,16.957,10.0]
[1673592619627,37.0,16.977,16.957,10.0]
[1673592619843,17.0,16.976,16.957,10.0]
[1673592620033,20.0,16.975,16.957,10.0]
[1673592620245,23.49,16.97,16.956,114.381]
[1673592620450,37.0,16.969,16.956,114.381]
[1673592620666,23.58,16.98,16.956,114.381]
[1673592620887,1.50932691,16.976,16.961,10.0]
[1673592621098,23.58,16.98,16.961,10.0]
[1673592622143,20.0,16.979,16.961,10.0]
[1673592622353,17.0,16.978,16.961,10.0]
[1673592622569,20.0,16.977,16.958,10.0]
[1673592622766,17.0,16.976,16.958,10.0]
[1673592622978,20.0,16.975,16.958,10.0]
[1673592623186,17.0,16.974,16.958,10.0]
[1673592623621,20.0,16.975,16.958,10.0]
[1673592623823,20.0,16.979,16.958,10.0]
[1673592624036,17.0,16.978,16.96,10.0]
[1673592624255,20.0,16.977,16.961,17.0]
[1673592624575,17.0,16.976,16.961,17.0]
[1673592624894,17.0,16.976,16.96,10.0]
[1673592625202,20.0,16.975,16.96,10.0]
[1673592625413,17.0,16.974,16.961,17.0]
[1673592625622,17.0,16.974,16.951,10.0]
[1673592626029,23.67,16.97,16.951,10.0]
[1673592626233,20.0,16.969,16.955,10.0]
[1673592626664,20.0,16.969,16.957,10.0]
[1673592626887,20.0,16.969,16.959,10.0]
[1673592627205,20.0,16.973,16.96,17.0]
[1673592627724,23.58,16.98,16.961,10.0]
[1673592627938,20.0,16.979,16.962,17.0]
[1673592629282,20.0,16.979,16.963,10.0]
[1673592629604,20.0,16.979,16.964,17.0]
[1673592630674,20.0,16.979,16.965,10.0]
[1673592630862,17.0,16.978,16.965,10.0]
[1673592631073,20.0,16.977,16.965,10.0]
[1673592632117,20.0,16.979,16.966,17.0]
[1673592632325,20.0,16.988,16.967,10.0]
[1673592632559,20.0,16.989,16.968,17.0]
[1673592632750,20.0,16.989,16.969,10.0]
[1673592632962,20.0,16.989,16.97,17.0]
[1673592633809,17.0,16.988,16.97,17.0]
[1673592634009,20.0,16.987,16.966,10.0]
[1673592634232,23.49,16.98,16.958,30.46683801]
[1673592634455,37.0,16.979,16.958,30.46683801]
[1673592634667,37.0,16.979,16.965,117.107]
[1673592634870,10.0,16.999,16.966,10.0]
[1673592635185,23.67,16.99,16.97,23.47]
[1673592635612,23.67,16.99,16.971,10.0]
[1673592636145,23.67,16.99,16.973,10.0]
[1673592636357,23.67,16.99,16.974,17.0]
[1673592637086,23.67,16.99,16.975,10.0]
[1673592637279,20.0,16.989,16.975,10.0]
[1673592637490,20.0,16.989,16.977,10.0]
[1673592640225,20.0,16.989,16.979,10.0]
[1673592640436,20.0,16.999,16.98,17.0]
[1673592641388,44.57238709,16.998,16.981,10.0]
[1673592641606,20.0,16.997,16.983,10.0]
[1673592641906,20.0,16.997,16.984,17.0]
[1673592642130,20.0,17.008,16.985,10.0]
[1673592642342,20.0,17.009,16.986,17.0]
[1673592642535,70.64977857,17.009,16.987,10.0]
[1673592642958,17.0,17.008,16.987,10.0]
[1673592643188,20.0,17.007,16.987,10.0]
[1673592643708,226.57,17.01,16.987,10.0]
[1673592643918,226.57,17.01,16.983,108.6975]
[1673592644233,118.55,17.0,16.983,10.0]
[1673592644658,21.82495,17.009,16.983,10.0]
[1673592644857,17.0,17.009,16.984,10.0]
[1673592645061,20.0,17.008,16.984,10.0]
[1673592645271,23.49,17.0,16.984,10.0]
[1673592645492,20.0,16.999,16.984,10.0]
[1673592652631,20.0,17.009,16.984,10.0]
[1673592653998,17.0,17.008,16.984,10.0]
[1673592654221,23.49,16.99,16.97,23.43]
[1673592654526,23.49,16.99,16.977,114.8057]
[1673592654743,20.0,16.989,16.977,114.8057]
[1673592654958,20.0,16.989,16.978,10.0]
[1673592657155,5.20876406,16.999,16.978,10.0]
[1673592657156,20.0,16.998,16.978,10.0]
[1673592657494,5.20876406,16.996,16.978,10.0]
[1673592657708,37.0,16.995,16.978,10.0]
[1673592657911,5.20876406,16.994,16.978,10.0]
[1673592658105,20.0,16.993,16.978,10.0]
[1673592658316,5.20876406,16.992,16.978,10.0]
[1673592658541,23.67,16.99,16.978,10.0]
[1673592658750,20.0,16.989,16.978,10.0]
[1673592659168,73.99986124,16.989,16.96,23.88]
[1673592659497,23.67,16.98,16.969,117.6384]
[1673592659698,20.0,16.979,16.969,117.6384]
[1673592660421,17.0,16.978,16.969,117.6384]
[1673592660754,20.0,16.977,16.969,117.6384]
[1673592662210,20.0,16.979,16.969,117.6384]
[1673592662422,17.0,16.978,16.969,117.6384]
[1673592662642,20.0,16.977,16.969,117.6384]
[1673592662848,20.0,16.977,16.97,10.0]
[1673592663169,20.0,16.979,16.97,10.0]
[1673592663887,20.0,16.979,16.969,117.6384]
[1673592664413,20.0,16.979,16.97,10.0]
[1673592665684,47.25,16.99,16.97,10.0]
[1673592666017,20.0,16.989,16.97,10.0]
[1673592666216,20.0,16.989,16.971,10.0]
[1673592666424,20.0,16.989,16.971,40.46683801]
[1673592666631,54.85523733,16.997,16.973,177.5]
[1673592666840,20.0,16.996,16.974,131.3952]
[1673592667058,20.0,16.996,16.974,308.8952]
[1673592667279,20.0,16.996,16.975,10.0]
[1673592667460,20.0,16.998,16.976,20.0]
[1673592667886,20.0,16.998,16.977,10.0]
[1673592668311,73.99986124,16.999,16.979,10.0]
[1673592668530,53.99986124,16.997,16.979,10.0]
[1673592668851,20.0,16.996,16.979,10.0]
[1673592674098,20.0,16.999,16.981,10.0]
[1673592674826,17.0,16.998,16.981,10.0]
[1673592675252,20.0,16.997,16.981,10.0]
[1673592675455,17.0,16.996,16.981,10.0]
[1673592675662,20.0,16.995,16.979,10.0]
[1673592675883,23.67,16.99,16.978,114.9816]
[1673592676210,20.0,16.989,16.978,114.9816]
[1673592676827,20.0,16.989,16.974,111.3952]
[1673592677037,17.0,16.988,16.974,219.9492]
[1673592677255,20.0,16.987,16.974,219.9492]
[1673592677577,17.0,16.986,16.974,219.9492]
[1673592677788,20.0,16.985,16.974,219.9492]
[1673592678393,20.0,16.985,16.975,10.0]
[1673592679032,20.0,16.994,16.975,10.0]
[1673592679245,110.41,16.99,16.975,10.0]
[1673592679453,37.0,16.989,16.975,10.0]
[1673592679885,90.9929279,16.989,16.975,10.0]
[1673592680925,10.0,17.003,16.975,10.0]
[1673592680926,22.22,17.0,16.977,10.0]
[1673592682185,20.0,16.999,16.977,10.0]
[1673592682831,17.0,16.998,16.977,10.0]
[1673592683023,20.0,16.997,16.977,10.0]
[1673592684844,22.22,17.0,16.977,10.0]
[1673592684845,20.0,16.999,16.977,10.0]
[1673592686386,20.0,16.999,16.978,1228.6]
[1673592686600,20.0,16.999,16.979,10.0]
[1673592686829,20.0,16.999,16.98,1228.6]
[1673592687145,20.0,16.999,16.981,10.0]
[1673592687542,20.0,16.999,16.983,10.0]
[1673592688408,20.0,17.009,16.984,224.43840273]
[1673592688619,20.0,17.009,16.985,10.0]
[1673592689692,20.0,17.009,16.986,10.0]
[1673592690726,20.0,17.009,16.986,55.97840273]
[1673592690925,17.0,17.008,16.987,10.0]
[1673592691137,20.0,17.007,16.987,10.0]
[1673592693370,17.0,17.006,16.987,10.0]
[1673592693578,20.0,17.005,16.987,10.0]
[1673592695757,20.0,17.005,16.986,10.0]
[1673592696178,20.0,17.005,16.983,123.4155]
[1673592696389,21.82,17.0,16.983,123.4155]
[1673592696710,17.0,17.004,16.98,32.04]
[1673592696711,37.0,16.999,16.982,115.1754]
[1673592696921,20.0,16.999,16.983,10.0]
[1673592697135,23.43,17.0,16.983,10.0]
[1673592697560,20.0,16.999,16.983,10.0]
[1673592700618,23.43,17.0,16.983,10.0]
[1673592700838,23.43,17.0,16.984,10.0]
[1673592702090,20.0,16.999,16.984,10.0]
[1673592705857,20.0,17.009,16.985,222.69320273]
[1673592706068,20.0,17.009,16.986,10.0]
[1673592706278,20.0,17.009,16.986,55.19320273]
[1673592706794,20.0,17.009,16.987,10.0]
[1673592707010,17.0,17.008,16.987,10.0]
[1673592707243,20.0,17.007,16.987,10.0]
[1673592709980,20.0,17.009,16.987,10.0]
[1673592710936,17.0,17.008,16.987,10.0]
[1673592711135,20.0,17.007,16.987,10.0]
[1673592712615,17.0,17.006,16.987,10.0]
[1673592712827,20.0,17.005,16.987,10.0]
[1673592713665,20.0,17.009,16.987,10.0]
[1673592713883,17.0,17.008,16.987,10.0]
[1673592714097,20.0,17.007,16.987,10.0]
[1673592714637,20.0,17.009,16.987,10.0]
[1673592717462,17.0,17.008,16.987,10.0]